[Event "Titled Tuesday Blitz March 14 Late 2023"]
[White "Kowalysko, Roman"]
[Black "Poeta, Caio Medeiros"]
[WhiteFideId "30918510"]
[BlackFideId "2142660"]
[WhiteElo "2231"]
[BlackElo "2191"]
[Result "1-0"]
[Round "04"]
[TimeControl "180+1"]
[Date "2023.03.14"]
[WhiteClock "0:00:36"]
[BlackClock "0:01:04"]

1. e4 {[%clk 0:03:00]}  c6 {[%clk 0:02:59]} 2. Nf3 {[%clk 0:03:00]}  d5 {[%clk 0:03:00]} 3. exd5 {[%clk 0:03:00]}  cxd5 {[%clk 0:03:00]} 4. Ne5 {[%clk 0:02:27]}  Nd7 {[%clk 0:02:58]} 5. d4 {[%clk 0:02:27]}  g6 {[%clk 0:02:53]} 6. Bb5 {[%clk 0:02:24]}  Bg7 {[%clk 0:02:49]} 7. Nc3 {[%clk 0:02:22]}  Nf6 {[%clk 0:02:43]} 8. O-O {[%clk 0:02:21]}  O-O {[%clk 0:02:42]} 9. f4 {[%clk 0:02:21]}  a6 {[%clk 0:02:41]} 10. Bxd7 {[%clk 0:02:20]}  Bxd7 {[%clk 0:02:41]} 11. Nxd7 {[%clk 0:02:10]}  Qxd7 {[%clk 0:02:40]} 12. Qf3 {[%clk 0:02:09]}  Rad8 {[%clk 0:02:39]} 13. Be3 {[%clk 0:02:04]}  e6 {[%clk 0:02:28]} 14. Rae1 {[%clk 0:02:01]}  b5 {[%clk 0:02:27]} 15. a3 {[%clk 0:02:00]}  Rc8 {[%clk 0:02:26]} 16. Re2 {[%clk 0:01:58]}  Rc4 {[%clk 0:02:16]} 17. h3 {[%clk 0:01:50]}  Rfc8 {[%clk 0:02:17]} 18. g4 {[%clk 0:01:48]}  Qb7 {[%clk 0:02:16]} 19. f5 {[%clk 0:01:47]}  Ne4 {[%clk 0:02:13]} 20. fxe6 {[%clk 0:01:39]}  fxe6 {[%clk 0:02:10]} 21. Nxe4 {[%clk 0:01:38]}  dxe4 {[%clk 0:02:10]} 22. Qf2 {[%clk 0:01:37]}  Rf8 {[%clk 0:02:04]} 23. Qh2 {[%clk 0:01:31]}  Rxf1+ {[%clk 0:02:02]} 24. Kxf1 {[%clk 0:01:30]}  Bxd4 {[%clk 0:02:02]} 25. b3 {[%clk 0:01:26]}  Rxc2 {[%clk 0:01:40]} 26. Bxd4 {[%clk 0:01:22]}  Rc1+ {[%clk 0:01:41]} 27. Re1 {[%clk 0:01:18]}  Qc6 {[%clk 0:01:23]} 28. Qf2 {[%clk 0:01:13]}  Rxe1+ {[%clk 0:01:23]} 29. Qxe1 {[%clk 0:01:11]}  Qd5 {[%clk 0:01:23]} 30. Qe3 {[%clk 0:01:09]}  a5 {[%clk 0:01:20]} 31. Ke2 {[%clk 0:01:00]}  a4 {[%clk 0:01:19]} 32. Bb2 {[%clk 0:00:45]}  axb3 {[%clk 0:01:06]} 33. Qd4 {[%clk 0:00:45]}  Qc4+ {[%clk 0:01:03]} 34. Qxc4 {[%clk 0:00:42]}  bxc4 {[%clk 0:01:03]} 35. a4 {[%clk 0:00:36]}  Kf8 {[%clk 0:01:03]} 36. a5 {[%clk 0:00:35]}  Ke7 {[%clk 0:01:03]} 37. a6 {[%clk 0:00:36]}  c3 {[%clk 0:01:04]} 38. Bxc3 {[%clk 0:00:36]}  Kd7 {[%clk 0:01:03]} 39. a7 {[%clk 0:00:36]}  b2 {[%clk 0:01:04]} 40. Bxb2 {[%clk 0:00:36]} 1-0


[Site "https://www.chess.com"]

[Event "Titled Tuesday Blitz March 14 Late 2023"]
[White "Kozak, Adam"]
[Black "Melikyan, Gnel"]
[WhiteFideId "753246"]
[BlackFideId "54109990"]
[WhiteElo "2469"]
[BlackElo "2138"]
[Result "1-0"]
[Round "04"]
[TimeControl "180+1"]
[Date "2023.03.14"]
[WhiteClock "0:01:24"]
[BlackClock "0:00:00"]

1. e4 {[%clk 0:02:55]}  Nf6 {[%clk 0:02:58]} 2. Nc3 {[%clk 0:02:53]}  d6 {[%clk 0:02:55]} 3. d4 {[%clk 0:02:51]}  e5 {[%clk 0:02:54]} 4. Nge2 {[%clk 0:02:46]}  Nc6 {[%clk 0:02:52]} 5. h3 {[%clk 0:02:44]}  g6 {[%clk 0:02:47]} 6. Be3 {[%clk 0:02:43]}  Bg7 {[%clk 0:02:45]} 7. Qd2 {[%clk 0:02:43]}  O-O {[%clk 0:02:43]} 8. d5 {[%clk 0:02:39]}  Ne7 {[%clk 0:02:42]} 9. O-O-O {[%clk 0:02:38]}  Re8 {[%clk 0:02:38]} 10. g4 {[%clk 0:02:38]}  b5 {[%clk 0:02:30]} 11. g5 {[%clk 0:02:27]}  Nh5 {[%clk 0:02:28]} 12. Nxb5 {[%clk 0:02:26]}  Rf8 {[%clk 0:02:12]} 13. h4 {[%clk 0:02:13]}  Rb8 {[%clk 0:01:42]} 14. Qa5 {[%clk 0:02:12]}  a6 {[%clk 0:01:34]} 15. Nxc7 {[%clk 0:02:08]}  Rb7 {[%clk 0:01:21]} 16. Bb6 {[%clk 0:02:07]}  Bg4 {[%clk 0:01:11]} 17. Rd3 {[%clk 0:02:04]}  Nc8 {[%clk 0:01:01]} 18. f3 {[%clk 0:01:51]}  Bd7 {[%clk 0:00:40]} 19. Ne6 {[%clk 0:01:50]}  Qxb6 {[%clk 0:00:39]} 20. Qxb6 {[%clk 0:01:49]}  Rxb6 {[%clk 0:00:34]} 21. Nxf8 {[%clk 0:01:50]}  Bxf8 {[%clk 0:00:33]} 22. Rc3 {[%clk 0:01:48]}  Rb8 {[%clk 0:00:18]} 23. Bh3 {[%clk 0:01:47]}  Bxh3 {[%clk 0:00:18]} 24. Rxh3 {[%clk 0:01:47]}  f5 {[%clk 0:00:15]} 25. Rc6 {[%clk 0:01:38]}  Nb6 {[%clk 0:00:15]} 26. b3 {[%clk 0:01:34]}  Nd7 {[%clk 0:00:15]} 27. exf5 {[%clk 0:01:30]}  gxf5 {[%clk 0:00:11]} 28. Rxa6 {[%clk 0:01:31]}  Bg7 {[%clk 0:00:04]} 29. Rxd6 {[%clk 0:01:29]}  Nc5 {[%clk 0:00:02]} 30. Rc6 {[%clk 0:01:29]}  Nb7 {[%clk 0:00:00]} 31. c4 {[%clk 0:01:24]} 1-0


[Site "https://www.chess.com"]

[Event "Titled Tuesday Blitz March 14 Late 2023"]
[White "Kozin, Yuri"]
[Black "Barash, Anton"]
[WhiteFideId "4129920"]
[BlackFideId "30935229"]
[WhiteElo "2523"]
[BlackElo "2341"]
[Result "1-0"]
[Round "04"]
[TimeControl "180+1"]
[Date "2023.03.14"]
[WhiteClock "0:00:50"]
[BlackClock "0:00:24"]

1. e4 {[%clk 0:03:00]}  e6 {[%clk 0:02:58]} 2. d4 {[%clk 0:02:58]}  d5 {[%clk 0:02:58]} 3. Nd2 {[%clk 0:02:59]}  Be7 {[%clk 0:02:57]} 4. Ngf3 {[%clk 0:02:59]}  Nf6 {[%clk 0:02:53]} 5. Bd3 {[%clk 0:03:00]}  c5 {[%clk 0:02:52]} 6. dxc5 {[%clk 0:03:01]}  dxe4 {[%clk 0:02:52]} 7. Nxe4 {[%clk 0:03:02]}  Nxe4 {[%clk 0:02:52]} 8. Bxe4 {[%clk 0:03:02]}  Qxd1+ {[%clk 0:02:53]} 9. Kxd1 {[%clk 0:03:03]}  Bxc5 {[%clk 0:02:54]} 10. Ke2 {[%clk 0:03:04]}  Nd7 {[%clk 0:02:53]} 11. Be3 {[%clk 0:03:03]}  Bxe3 {[%clk 0:02:53]} 12. Kxe3 {[%clk 0:03:03]}  Nc5 {[%clk 0:02:54]} 13. Rhd1 {[%clk 0:02:53]}  Nxe4 {[%clk 0:02:51]} 14. Kxe4 {[%clk 0:02:54]}  Ke7 {[%clk 0:02:50]} 15. Nd4 {[%clk 0:02:47]}  Bd7 {[%clk 0:02:45]} 16. g3 {[%clk 0:02:47]}  Rhd8 {[%clk 0:02:42]} 17. f4 {[%clk 0:02:47]}  Rac8 {[%clk 0:02:39]} 18. c3 {[%clk 0:02:47]}  f6 {[%clk 0:02:33]} 19. Rd2 {[%clk 0:02:42]}  Be8 {[%clk 0:02:29]} 20. Rad1 {[%clk 0:02:40]}  Bh5 {[%clk 0:02:18]} 21. Re1 {[%clk 0:02:29]}  Rc4 {[%clk 0:02:06]} 22. Ke3 {[%clk 0:02:22]}  Kf7 {[%clk 0:01:57]} 23. Kf2 {[%clk 0:02:15]}  Rd6 {[%clk 0:01:48]} 24. h3 {[%clk 0:02:09]}  f5 {[%clk 0:01:20]} 25. Rg1 {[%clk 0:02:03]}  b5 {[%clk 0:01:12]} 26. g4 {[%clk 0:02:00]}  fxg4 {[%clk 0:01:00]} 27. hxg4 {[%clk 0:02:01]}  Bg6 {[%clk 0:01:01]} 28. a3 {[%clk 0:01:39]}  a5 {[%clk 0:01:01]} 29. Re2 {[%clk 0:01:27]}  b4 {[%clk 0:00:55]} 30. axb4 {[%clk 0:01:12]}  axb4 {[%clk 0:00:55]} 31. Nf3 {[%clk 0:00:58]}  Rxf4 {[%clk 0:00:44]} 32. Kg3 {[%clk 0:00:58]}  Rf6 {[%clk 0:00:35]} 33. Ne5+ {[%clk 0:00:51]}  Ke7 {[%clk 0:00:30]} 34. cxb4 {[%clk 0:00:51]}  Rb6 {[%clk 0:00:28]} 35. Ra1 {[%clk 0:00:50]}  Rxb4 {[%clk 0:00:24]} 36. Nc6+ {[%clk 0:00:50]} 1-0


[Site "https://www.chess.com"]

[Event "Titled Tuesday Blitz March 14 Late 2023"]
[White "Lorenzo De La Riva, Lazaro"]
[Black "Tymrakiewicz, Rafal"]
[WhiteFideId "2268809"]
[BlackFideId "1108832"]
[WhiteElo "2294"]
[BlackElo "2151"]
[Result "1-0"]
[Round "04"]
[TimeControl "180+1"]
[Date "2023.03.14"]
[WhiteClock "0:00:28"]
[BlackClock "0:00:03"]

1. d4 {[%clk 0:03:00]}  Nf6 {[%clk 0:02:58]} 2. Nf3 {[%clk 0:03:00]}  d6 {[%clk 0:02:58]} 3. e3 {[%clk 0:03:00]}  g6 {[%clk 0:02:57]} 4. Be2 {[%clk 0:02:58]}  Bg7 {[%clk 0:02:57]} 5. b3 {[%clk 0:02:57]}  O-O {[%clk 0:02:58]} 6. Bb2 {[%clk 0:02:57]}  b6 {[%clk 0:02:56]} 7. O-O {[%clk 0:02:56]}  Bb7 {[%clk 0:02:57]} 8. c4 {[%clk 0:02:53]}  e6 {[%clk 0:02:57]} 9. Qc2 {[%clk 0:02:50]}  Nbd7 {[%clk 0:02:57]} 10. Nc3 {[%clk 0:02:47]}  Qe7 {[%clk 0:02:57]} 11. e4 {[%clk 0:02:39]}  c5 {[%clk 0:02:20]} 12. d5 {[%clk 0:02:38]}  Nh5 {[%clk 0:02:09]} 13. Rfe1 {[%clk 0:02:32]}  Bxc3 {[%clk 0:01:58]} 14. Bxc3 {[%clk 0:02:27]}  e5 {[%clk 0:01:59]} 15. Nd2 {[%clk 0:02:24]}  Rae8 {[%clk 0:01:19]} 16. Bxh5 {[%clk 0:02:03]}  gxh5 {[%clk 0:01:19]} 17. Nf1 {[%clk 0:02:00]}  f5 {[%clk 0:01:15]} 18. exf5 {[%clk 0:01:58]}  Qg5 {[%clk 0:01:10]} 19. Ng3 {[%clk 0:01:48]}  h4 {[%clk 0:00:58]} 20. Bd2 {[%clk 0:01:46]}  Qf6 {[%clk 0:00:44]} 21. Nf1 {[%clk 0:01:10]}  Qxf5 {[%clk 0:00:38]} 22. Qxf5 {[%clk 0:01:10]}  Rxf5 {[%clk 0:00:38]} 23. g4 {[%clk 0:00:57]}  Rf3 {[%clk 0:00:27]} 24. Re3 {[%clk 0:00:55]}  Ref8 {[%clk 0:00:25]} 25. Rxf3 {[%clk 0:00:54]}  Rxf3 {[%clk 0:00:26]} 26. Kg2 {[%clk 0:00:52]}  e4 {[%clk 0:00:13]} 27. Re1 {[%clk 0:00:48]}  h3+ {[%clk 0:00:13]} 28. Kg1 {[%clk 0:00:47]}  Nf6 {[%clk 0:00:14]} 29. g5 {[%clk 0:00:40]}  Ng4 {[%clk 0:00:14]} 30. Rxe4 {[%clk 0:00:28]}  Nxf2 {[%clk 0:00:12]} 31. Re7 {[%clk 0:00:28]}  Ba6 {[%clk 0:00:03]} 32. Rxa7 {[%clk 0:00:28]} 1-0


[Site "https://www.chess.com"]

[Event "Titled Tuesday Blitz March 14 Late 2023"]
[White "Manukian, Artak"]
[Black "Fajdetic, Hrvoje"]
[WhiteFideId "13301373"]
[BlackFideId "14501945"]
[WhiteElo "2130"]
[BlackElo "2185"]
[Result "1-0"]
[Round "04"]
[TimeControl "180+1"]
[Date "2023.03.14"]
[WhiteClock "0:01:44"]
[BlackClock "0:00:36"]

1. e4 {[%clk 0:03:00]}  c5 {[%clk 0:02:59]} 2. Nf3 {[%clk 0:03:00]}  a6 {[%clk 0:02:59]} 3. c3 {[%clk 0:03:00]}  d5 {[%clk 0:02:58]} 4. exd5 {[%clk 0:03:00]}  Qxd5 {[%clk 0:02:59]} 5. d4 {[%clk 0:03:01]}  Bg4 {[%clk 0:02:58]} 6. Be2 {[%clk 0:03:01]}  Nf6 {[%clk 0:02:57]} 7. Be3 {[%clk 0:03:01]}  e6 {[%clk 0:02:56]} 8. h3 {[%clk 0:03:01]}  Bh5 {[%clk 0:02:55]} 9. dxc5 {[%clk 0:03:00]}  Nbd7 {[%clk 0:02:54]} 10. b4 {[%clk 0:02:59]}  Qxd1+ {[%clk 0:02:51]} 11. Bxd1 {[%clk 0:02:58]}  Nd5 {[%clk 0:02:51]} 12. O-O {[%clk 0:02:49]}  Nxe3 {[%clk 0:02:49]} 13. fxe3 {[%clk 0:02:48]}  Be7 {[%clk 0:02:48]} 14. Nd4 {[%clk 0:02:46]}  Bg6 {[%clk 0:02:45]} 15. Nd2 {[%clk 0:02:40]}  a5 {[%clk 0:02:41]} 16. Nc4 {[%clk 0:02:33]}  Bd3 {[%clk 0:02:32]} 17. Be2 {[%clk 0:02:30]}  Bxe2 {[%clk 0:02:19]} 18. Nxe2 {[%clk 0:02:30]}  O-O {[%clk 0:02:17]} 19. a4 {[%clk 0:02:27]}  Bf6 {[%clk 0:02:16]} 20. Nd4 {[%clk 0:02:23]}  g6 {[%clk 0:01:55]} 21. Nxa5 {[%clk 0:02:19]}  Bg5 {[%clk 0:01:28]} 22. Nc4 {[%clk 0:02:13]}  e5 {[%clk 0:01:24]} 23. Nf3 {[%clk 0:02:09]}  Bh6 {[%clk 0:01:22]} 24. e4 {[%clk 0:02:04]}  Rfc8 {[%clk 0:01:17]} 25. Rfd1 {[%clk 0:01:59]}  Rc7 {[%clk 0:01:10]} 26. a5 {[%clk 0:01:54]}  f6 {[%clk 0:01:07]} 27. Nb6 {[%clk 0:01:47]}  Nxb6 {[%clk 0:01:03]} 28. axb6 {[%clk 0:01:47]}  Rxa1 {[%clk 0:01:02]} 29. Rxa1 {[%clk 0:01:48]}  Rd7 {[%clk 0:00:58]} 30. Ra7 {[%clk 0:01:47]}  Rd3 {[%clk 0:00:48]} 31. Rxb7 {[%clk 0:01:46]}  Rxc3 {[%clk 0:00:48]} 32. Rc7 {[%clk 0:01:45]}  Rc4 {[%clk 0:00:37]} 33. b7 {[%clk 0:01:44]}  Be3+ {[%clk 0:00:36]} 34. Kf1 {[%clk 0:01:44]} 1-0


[Site "https://www.chess.com"]

[Event "Titled Tuesday Blitz March 14 Late 2023"]
[White "Maranhao,Jose Renato Ruiz"]
[Black "Trakru, Rohun"]
[WhiteFideId "2135175"]
[BlackFideId "2097613"]
[WhiteElo "1970"]
[BlackElo "1852"]
[Result "0-1"]
[Round "04"]
[TimeControl "180+1"]
[Date "2023.03.14"]
[WhiteClock "0:00:01"]
[BlackClock "0:01:16"]

1. g3 {[%clk 0:03:00]}  d5 {[%clk 0:02:56]} 2. Bg2 {[%clk 0:03:01]}  g6 {[%clk 0:02:53]} 3. d3 {[%clk 0:02:47]}  Bg7 {[%clk 0:02:52]} 4. Nf3 {[%clk 0:02:45]}  e5 {[%clk 0:02:52]} 5. O-O {[%clk 0:02:43]}  Nc6 {[%clk 0:02:52]} 6. e4 {[%clk 0:02:43]}  dxe4 {[%clk 0:02:50]} 7. dxe4 {[%clk 0:02:44]}  Qxd1 {[%clk 0:02:49]} 8. Rxd1 {[%clk 0:02:45]}  Bg4 {[%clk 0:02:45]} 9. Nc3 {[%clk 0:02:15]}  Nd4 {[%clk 0:02:34]} 10. Nxd4 {[%clk 0:02:10]}  exd4 {[%clk 0:02:24]} 11. Nb5 {[%clk 0:01:41]}  Bxd1 {[%clk 0:02:15]} 12. Nxc7+ {[%clk 0:01:40]}  Kd7 {[%clk 0:02:16]} 13. Nxa8 {[%clk 0:01:38]}  Bxc2 {[%clk 0:02:15]} 14. Bf4 {[%clk 0:01:10]}  Nf6 {[%clk 0:01:57]} 15. Rc1 {[%clk 0:01:00]}  d3 {[%clk 0:01:43]} 16. Bh3+ {[%clk 0:00:54]}  Kc6 {[%clk 0:01:34]} 17. Nc7 {[%clk 0:00:33]}  Nxe4 {[%clk 0:01:34]} 18. Bg2 {[%clk 0:00:24]}  f5 {[%clk 0:01:34]} 19. Ne6 {[%clk 0:00:23]}  Bxb2 {[%clk 0:01:33]} 20. Re1 {[%clk 0:00:04]}  Re8 {[%clk 0:01:26]} 21. f3 {[%clk 0:00:01]}  Rxe6 {[%clk 0:01:19]} 22. fxe4 {[%clk 0:00:01]}  fxe4 {[%clk 0:01:16]} 0-1


[Site "https://www.chess.com"]

[Event "Titled Tuesday Blitz March 14 Late 2023"]
[White "Matinian, Nikita"]
[Black "Goncalves, Davi Sulzbacher"]
[WhiteFideId "24129100"]
[BlackFideId "2154510"]
[WhiteElo "2422"]
[BlackElo "2182"]
[Result "1-0"]
[Round "04"]
[TimeControl "180+1"]
[Date "2023.03.14"]
[WhiteClock "0:00:35"]
[BlackClock "0:00:15"]

1. e4 {[%clk 0:03:00]}  c5 {[%clk 0:02:57]} 2. Nc3 {[%clk 0:02:59]}  Nc6 {[%clk 0:02:56]} 3. Bb5 {[%clk 0:02:59]}  Nd4 {[%clk 0:02:52]} 4. Nf3 {[%clk 0:02:59]}  Nxb5 {[%clk 0:02:50]} 5. Nxb5 {[%clk 0:03:00]}  e6 {[%clk 0:02:48]} 6. d4 {[%clk 0:02:59]}  Qa5+ {[%clk 0:02:41]} 7. Nc3 {[%clk 0:02:58]}  Nf6 {[%clk 0:02:41]} 8. O-O {[%clk 0:02:43]}  cxd4 {[%clk 0:02:38]} 9. Nxd4 {[%clk 0:02:43]}  Bb4 {[%clk 0:02:38]} 10. e5 {[%clk 0:02:41]}  Qxe5 {[%clk 0:02:28]} 11. Re1 {[%clk 0:02:33]}  Qh5 {[%clk 0:02:21]} 12. Qxh5 {[%clk 0:02:27]}  Nxh5 {[%clk 0:02:21]} 13. Bd2 {[%clk 0:02:24]}  d5 {[%clk 0:02:05]} 14. Ndb5 {[%clk 0:01:48]}  O-O {[%clk 0:01:55]} 15. a3 {[%clk 0:01:29]}  Ba5 {[%clk 0:01:31]} 16. b4 {[%clk 0:01:27]}  Bb6 {[%clk 0:01:28]} 17. Na4 {[%clk 0:01:24]}  Bd8 {[%clk 0:00:59]} 18. Be3 {[%clk 0:01:22]}  Bd7 {[%clk 0:00:57]} 19. Nbc3 {[%clk 0:01:15]}  b6 {[%clk 0:00:38]} 20. Nb2 {[%clk 0:01:12]}  Bf6 {[%clk 0:00:33]} 21. Bd2 {[%clk 0:01:11]}  Rac8 {[%clk 0:00:28]} 22. Nbd1 {[%clk 0:01:07]}  g6 {[%clk 0:00:20]} 23. Rc1 {[%clk 0:01:04]}  Ng7 {[%clk 0:00:19]} 24. g4 {[%clk 0:01:02]}  d4 {[%clk 0:00:18]} 25. Ne4 {[%clk 0:01:02]}  Be7 {[%clk 0:00:19]} 26. g5 {[%clk 0:00:59]}  Bc6 {[%clk 0:00:18]} 27. f3 {[%clk 0:00:45]}  Rfd8 {[%clk 0:00:19]} 28. Ndf2 {[%clk 0:00:45]}  Nf5 {[%clk 0:00:19]} 29. Ng4 {[%clk 0:00:41]}  Kg7 {[%clk 0:00:19]} 30. Bf4 {[%clk 0:00:35]}  Bxe4 {[%clk 0:00:19]} 31. fxe4 {[%clk 0:00:35]}  Nh4 {[%clk 0:00:19]} 32. Be5+ {[%clk 0:00:35]}  Kf8 {[%clk 0:00:19]} 33. Rf1 {[%clk 0:00:35]}  Ke8 {[%clk 0:00:18]} 34. Nf6+ {[%clk 0:00:33]}  Bxf6 {[%clk 0:00:18]} 35. Bxf6 {[%clk 0:00:34]}  d3 {[%clk 0:00:15]} 36. cxd3 {[%clk 0:00:33]}  Rxc1 {[%clk 0:00:14]} 37. Rxc1 {[%clk 0:00:34]}  Rxd3 {[%clk 0:00:14]} 38. Rc8+ {[%clk 0:00:34]}  Kd7 {[%clk 0:00:14]} 39. Rd8+ {[%clk 0:00:34]}  Kc6 {[%clk 0:00:15]} 40. Rxd3 {[%clk 0:00:35]} 1-0


[Site "https://www.chess.com"]

[Event "Titled Tuesday Blitz March 14 Late 2023"]
[White "Mekhane, Adam"]
[Black "Osuna Vega, Enrique"]
[WhiteFideId "36050601"]
[BlackFideId "2219549"]
[WhiteElo "2177"]
[BlackElo "2162"]
[Result "1-0"]
[Round "04"]
[TimeControl "180+1"]
[Date "2023.03.14"]
[WhiteClock "0:00:13"]
[BlackClock "0:00:08"]

1. e4 {[%clk 0:03:00]}  d6 {[%clk 0:02:59]} 2. d4 {[%clk 0:02:58]}  Nf6 {[%clk 0:02:59]} 3. Nc3 {[%clk 0:02:58]}  e5 {[%clk 0:02:59]} 4. Nf3 {[%clk 0:02:58]}  Nbd7 {[%clk 0:02:59]} 5. Bc4 {[%clk 0:02:58]}  Be7 {[%clk 0:02:59]} 6. O-O {[%clk 0:02:57]}  O-O {[%clk 0:02:59]} 7. a4 {[%clk 0:02:58]}  a5 {[%clk 0:02:57]} 8. h3 {[%clk 0:02:53]}  c6 {[%clk 0:02:57]} 9. Re1 {[%clk 0:02:49]}  Nb6 {[%clk 0:02:56]} 10. Bb3 {[%clk 0:02:48]}  Nfd7 {[%clk 0:02:56]} 11. Be3 {[%clk 0:02:44]}  exd4 {[%clk 0:02:56]} 12. Nxd4 {[%clk 0:02:37]}  Nc5 {[%clk 0:02:57]} 13. Qf3 {[%clk 0:02:07]}  Nxb3 {[%clk 0:02:53]} 14. cxb3 {[%clk 0:02:01]}  Nd7 {[%clk 0:02:48]} 15. Nf5 {[%clk 0:01:58]}  Ne5 {[%clk 0:02:48]} 16. Qg3 {[%clk 0:01:56]}  Bxf5 {[%clk 0:02:41]} 17. exf5 {[%clk 0:01:52]}  Bf6 {[%clk 0:02:41]} 18. Ne4 {[%clk 0:01:40]}  Bh4 {[%clk 0:01:54]} 19. Qh2 {[%clk 0:01:18]}  Re8 {[%clk 0:01:23]} 20. Rad1 {[%clk 0:01:06]}  d5 {[%clk 0:01:22]} 21. Bd4 {[%clk 0:00:33]}  Nd7 {[%clk 0:01:10]} 22. Nd6 {[%clk 0:00:30]}  Rxe1+ {[%clk 0:01:09]} 23. Rxe1 {[%clk 0:00:30]}  Nf6 {[%clk 0:00:53]} 24. Nxb7 {[%clk 0:00:24]}  Qb8 {[%clk 0:00:51]} 25. Qxb8+ {[%clk 0:00:17]}  Rxb8 {[%clk 0:00:52]} 26. Nxa5 {[%clk 0:00:16]}  h6 {[%clk 0:00:31]} 27. Nxc6 {[%clk 0:00:15]}  Rxb3 {[%clk 0:00:29]} 28. a5 {[%clk 0:00:13]}  Nd7 {[%clk 0:00:15]} 29. a6 {[%clk 0:00:13]}  Nb6 {[%clk 0:00:08]} 30. Bxb6 {[%clk 0:00:10]}  Rxb6 {[%clk 0:00:08]} 31. a7 {[%clk 0:00:11]}  Ra6 {[%clk 0:00:08]} 32. Re8+ {[%clk 0:00:11]}  Kh7 {[%clk 0:00:08]} 33. a8=Q {[%clk 0:00:12]}  Rxa8 {[%clk 0:00:08]} 34. Rxa8 {[%clk 0:00:13]} 1-0


[Site "https://www.chess.com"]

[Event "Titled Tuesday Blitz March 14 Late 2023"]
[White "Mendonca, Leon Luke"]
[Black "Estrada Nieto, Julian"]
[WhiteFideId "35028561"]
[BlackFideId "5101018"]
[WhiteElo "2464"]
[BlackElo "2176"]
[Result "1-0"]
[Round "04"]
[TimeControl "180+1"]
[Date "2023.03.14"]
[WhiteClock "0:00:23"]
[BlackClock "0:00:02"]

1. e4 {[%clk 0:03:00]}  e5 {[%clk 0:02:59]} 2. Nf3 {[%clk 0:03:00]}  Nc6 {[%clk 0:02:59]} 3. Bc4 {[%clk 0:03:00]}  Bc5 {[%clk 0:02:58]} 4. c3 {[%clk 0:03:00]}  Nf6 {[%clk 0:02:58]} 5. d3 {[%clk 0:03:00]}  d6 {[%clk 0:02:58]} 6. a4 {[%clk 0:02:58]}  a6 {[%clk 0:02:58]} 7. Nbd2 {[%clk 0:02:58]}  Ba7 {[%clk 0:02:58]} 8. Nf1 {[%clk 0:02:57]}  Ng4 {[%clk 0:02:58]} 9. Ne3 {[%clk 0:02:56]}  Nxe3 {[%clk 0:02:57]} 10. Bxe3 {[%clk 0:02:56]}  O-O {[%clk 0:02:54]} 11. Bxa7 {[%clk 0:02:56]}  Rxa7 {[%clk 0:02:53]} 12. h3 {[%clk 0:02:54]}  Be6 {[%clk 0:02:52]} 13. Bxe6 {[%clk 0:02:51]}  fxe6 {[%clk 0:02:52]} 14. O-O {[%clk 0:02:51]}  Qe8 {[%clk 0:02:46]} 15. Re1 {[%clk 0:02:44]}  h6 {[%clk 0:02:40]} 16. Rc1 {[%clk 0:02:40]}  Ra8 {[%clk 0:02:38]} 17. Re3 {[%clk 0:02:40]}  Ne7 {[%clk 0:02:26]} 18. d4 {[%clk 0:02:39]}  Ng6 {[%clk 0:02:19]} 19. dxe5 {[%clk 0:02:36]}  dxe5 {[%clk 0:02:11]} 20. g3 {[%clk 0:02:25]}  Rd8 {[%clk 0:02:00]} 21. Qb3 {[%clk 0:02:19]}  b6 {[%clk 0:01:58]} 22. Qc4 {[%clk 0:02:18]}  a5 {[%clk 0:01:40]} 23. Qxc7 {[%clk 0:02:09]}  Qxa4 {[%clk 0:01:26]} 24. Qxb6 {[%clk 0:02:04]}  Rd1+ {[%clk 0:01:24]} 25. Rxd1 {[%clk 0:02:04]}  Qxd1+ {[%clk 0:01:24]} 26. Kg2 {[%clk 0:02:03]}  Rf6 {[%clk 0:01:08]} 27. Qb5 {[%clk 0:00:56]}  Qc2 {[%clk 0:00:53]} 28. Qe2 {[%clk 0:00:55]}  Qxe2 {[%clk 0:00:32]} 29. Rxe2 {[%clk 0:00:56]}  a4 {[%clk 0:00:32]} 30. Rd2 {[%clk 0:00:52]}  Rf8 {[%clk 0:00:30]} 31. h4 {[%clk 0:00:53]}  Rb8 {[%clk 0:00:17]} 32. h5 {[%clk 0:00:52]}  Ne7 {[%clk 0:00:17]} 33. Nxe5 {[%clk 0:00:52]}  Kh7 {[%clk 0:00:11]} 34. Rd7 {[%clk 0:00:49]}  Ng8 {[%clk 0:00:10]} 35. Nc4 {[%clk 0:00:37]}  Nf6 {[%clk 0:00:08]} 36. Ra7 {[%clk 0:00:37]}  Nxe4 {[%clk 0:00:07]} 37. Rxa4 {[%clk 0:00:37]}  Nf6 {[%clk 0:00:06]} 38. Ra5 {[%clk 0:00:36]}  Rc8 {[%clk 0:00:05]} 39. Ne3 {[%clk 0:00:36]}  Rb8 {[%clk 0:00:05]} 40. b4 {[%clk 0:00:37]}  Rc8 {[%clk 0:00:04]} 41. c4 {[%clk 0:00:37]}  Ne4 {[%clk 0:00:04]} 42. Re5 {[%clk 0:00:35]}  Nd2 {[%clk 0:00:04]} 43. c5 {[%clk 0:00:34]}  Rb8 {[%clk 0:00:04]} 44. Nc2 {[%clk 0:00:30]}  Ra8 {[%clk 0:00:04]} 45. Rxe6 {[%clk 0:00:30]}  Ra2 {[%clk 0:00:04]} 46. Nd4 {[%clk 0:00:27]}  Nc4 {[%clk 0:00:04]} 47. Nf5 {[%clk 0:00:25]}  Kg8 {[%clk 0:00:03]} 48. Re7 {[%clk 0:00:24]}  Kf8 {[%clk 0:00:03]} 49. Re4 {[%clk 0:00:22]}  Nd2 {[%clk 0:00:03]} 50. Re2 {[%clk 0:00:23]}  Rb2 {[%clk 0:00:02]} 51. c6 {[%clk 0:00:23]} 1-0


[Site "https://www.chess.com"]